Cogmind - Beta 12 @@@ ROGUE MODE // 2023.04.11 @ 00:23:03 Player: Exp. Geonium Core Result: Destroyed by DAS Turret with DAS Cannon Performance ------------- Evolutions (0) 0 Regions Visited (3) 600 Robots Destroyed (7) 35 Value Destroyed (122) 122 Prototype IDs (24) 480 Alien Tech Used (0) 0 Bonus (-662) -662 TOTAL SCORE: 575 Bonus ------- Follower Combat Kills 120 Aligned with FarCom 300 Friendly Fire -1082 Cogmind --------- Core Integrity 0/250 Matter 250/300 Energy 310/310 System Corruption 7% Temperature Cool (14) Movement Walking (190) Ox1 Location -10/Exiles Parts ------- > --- POWER (1) -------- Reinforced Fission Core > --- PROPULSION (2) --- Advanced Myomer Leg Advanced Myomer Leg > --- UTILITY (2) ------ High-capacity Storage Unit > --- WEAPON (2) ------- Grenade Launcher Longsword +1 > --- INVENTORY (20) --- Improved Heat Sink Advanced Weapon Cycler Assault Rifle Light Assault Rifle Maul Maul Peak State ------------ > --- POWER ------------ Reinforced Fission Core > --- PROPULSION ------- Advanced Myomer Leg Advanced Myomer Leg > --- UTILITY ---------- High-capacity Storage Unit > --- WEAPON ----------- Grenade Launcher Longsword +1 > --- INVENTORY -------- Improved Heat Sink Advanced Weapon Cycler Assault Rifle Light Assault Rifle Maul Maul [Rating: 33] Favorites ----------- Power Ion Engine Engine Ion Engine Power Core Reinforced Fission Core Propulsion Light Treads Treads Light Treads Leg Aluminum Leg Utility Small Storage Unit Device Improved Heat Sink Storage Small Storage Unit Protection Light Armor Plating Weapon Assault Rifle Ballistic Gun Assault Rifle Launcher Grenade Launcher Impact Weapon Maul Slashing Weapon Longsword +1 Build | -11 -10 -10 -10 ------- Run | Jun Mat Min Exi Slots Evolved . | . . . . Power . | . . . . Propulsion . | . . . . Utility . | . . . . Weapon . | . . . . Parts Attached 16 | . 1 4 11 Power 2 | . . . 2 Engine 1 | . . . 1 Core 1 | . . . 1 Reactor . | . . . . Propulsion 5 | . . 2 3 Treads 3 | . . 2 1 Leg 2 | . . . 2 Wheel . | . . . . Hover . | . . . . Flight . | . . . . Utility 4 | . . 1 3 Device 1 | . . 1 . Storage 2 | . . . 2 Processor . | . . . . Hackware . | . . . . Protection 1 | . . . 1 Artifact . | . . . . Weapon 5 | . 1 1 3 Energy Gun . | . . . . Energy Cannon . | . . . . Ballistic Gun 1 | . . 1 . Ballistic Cannon . | . . . . Launcher 2 | . . . 2 Special Weapon . | . . . . Impact Weapon 1 | . 1 . . Slashing Weapon 1 | . . . 1 Piercing Weapon . | . . . . Special Melee Weapon . | . . . . Unidentified Prototypes 1 | . . . 1 Corrupted Parts 1 | . . . 1 System Corruption 7 | . . . 7 Parts Lost 7 | . . . 7 Power 2 | . . . 2 Propulsion 3 | . . . 3 Utility 1 | . . . 1 Weapon 1 | . . . 1 Highest Loss Streak 6 | . . . 6 To Critical Strikes 3 | . . . 3 Average Slot Usage (%) 89 | . 85 89 91 Engine 12 | . 14 14 10 Treads 22 | . . 26 22 Leg 5 | . 28 1 4 Device 6 | . . 3 10 Storage 13 | . 14 14 13 Ballistic Gun 22 | . 17 25 21 Impact Weapon 2 | . 10 2 . Slashing Weapon 1 | . . . 3 Naked Turns . | . . . . Heaviest Build 64 | 13 15 15 64 Greatest Support 60 | 20 20 40 60 Greatest Overweight (x) 1 | . . . 1 Average Overweight (x) . | . . . . Largest Inventory Capacity 20 | . 8 8 20 Average Capacity 11 | . 8 8 17 Most Carried 11 | . 8 8 11 Average Carried 8 | . 7 7 8 Final Capacity 20 | 8 8 8 20 Final Carried 8 | 6 8 8 6 Class Distribution -------------------- 100% | Mutant Dominant Class ---------------- Mutant | -10/Materials Mutant | -10/Mines Mutant | -10/Exiles Resources | -11 -10 -10 -10 ----------- Run | Jun Mat Min Exi Matter Collected 475 | 200 10 118 147 Remotely . | . . . . Salvage Created 418 | . 108 184 126 Parts 11 | . 5 3 3 Haulers Intercepted 2 | . 2 . . Recyclers Shooed . | . . . . Parts Field Recycled . | . . . . Retrieved Matter . | . . . . Parts Self-Destructed . | . . . . Prevented . | . . . . Kills | -11 -10 -10 -10 ------- Run | Jun Mat Min Exi Combat Hostiles Destroyed 7 | . . 2 5 Melee 2 | . . . 2 Guns 2 | . . 2 . AOE 3 | . . . 3 Classes Destroyed 4 | . 2 1 1 Hauler 2 | . 2 . . Watcher 1 | . 1 . . Grunt 2 | . . 2 . Assembled 4 | . . . 4 Best Kill Streak 4 | . 2 2 4 Combat Bots Only 4 | . . 2 4 Max Kills in Single Turn 1 | . 1 1 1 Gunslinging . | . . . . Exploded 1 | . . . 1 Melee 1 | . . . 1 Uniques/NPCs Destroyed 2 | . . 1 1 YI-UF0 (-10/Mines) 8R-AWN (-10/Exiles) Combat | -11 -10 -10 -10 -------- Run | Jun Mat Min Exi Damage Taken 1226 | . . 69 1157 Core 312 | . . . 312 Absorbed by Shields . | . . . . Core Remaining (%) 100 | 100 . . . Volleys Fired 26 | . . 13 13 Largest 2 | . . 2 2 Hottest 40 | . . 40 40 Shots Fired 41 | . . 26 15 Gun 30 | . . 26 4 Cannon . | . . . . Launcher 11 | . . . 11 Special . | . . . . Kinetic 30 | . . 26 4 Thermal . | . . . . Explosive 11 | . . . 11 Electromagnetic . | . . . . Robot Hit Streak 14 | . . 14 7 Robot Miss Streak 1 | . . 1 . Penetration Max . | . . . . Secondary Targets . | . . . . Shots Hit Robots 52 | . 4 21 27 Core Hits 22 | . . 11 11 Critical Kills . | . . . . Critical Parts Destroyed 3 | . 3 . . Critical Strikes 4 | . 3 . 1 Smash 3 | . 3 . . Sever 1 | . . . 1 Melee Attacks 28 | . 4 . 24 Impact 4 | . 4 . . Slashing 24 | . . . 24 Piercing . | . . . . Sneak Attacks 3 | . 3 . . Combat Hostiles . | . . . . Follow-up Attacks . | . . . . Damage Inflicted 1915 | . 353 275 1287 Guns 267 | . . 267 . Cannons . | . . . . Explosions 283 | . . . 283 Melee 1357 | . 353 . 1004 Ramming 8 | . . 8 . Kinetic 267 | . . 267 . Thermal . | . . . . Explosive 283 | . . . 283 Electromagnetic . | . . . . Impact 353 | . 353 . . Slashing 1004 | . . . 1004 Piercing . | . . . . Highest Corruption 7 | . . . 7 Average Corruption 7 | . . . 7 Corruption Purged . | . . . . Corruption Blocked . | . . . . Effects 5 | . . . 5 Message Errors 3 | . . . 3 Heat Flow Errors 1 | . . . 1 Data Loss (minor) 1 | . . . 1 Overload Shots . | . . . . Overflow Damage 268 | . 247 . 21 Projectiles . | . . . . Explosions . | . . . . Melee 268 | . 247 . 21 Knockbacks 1 | . 1 . . Impact 1 | . 1 . . Kinetic . | . . . . Secondary . | . . . . Self-Inflicted Damage 66 | . . . 66 Shots 2 | . . . 2 Rammed 1 | . . 1 . Targets Rammed 1 | . . 1 . Kicked . | . . . . Crushed . | . . . . Highest Temperature 93 | . . 2 93 Average Temperature 22 | . . 2 25 Received Heat Transfer 42 | . . 42 . Siege Activations . | . . . . Robots Corrupted . | . . . . Combat Hostiles . | . . . . Parts Fried 1 | . 1 . . Impact Corruptions 4 | . 4 . . Robots Melted . | . . . . Combat Hostiles . | . . . . Parts Melted . | . . . . Heat Transferred . | . . . . Parts Sabotaged . | . . . . Parts Stolen . | . . . . Parts Stripped . | . . . . Power Chain Reactions . | . . . . Missiles Intercepted . | . . . . Alert | -11 -10 -10 -10 ------- Run | Jun Mat Min Exi Peak Influence 116 | . 66 116 . Initial 25 | . . 25 . Average 36 | . 32 36 . Maximum Alert Level . | . . . . Low Security (%) 100 | . 100 100 . Level 1 . | . . . . Level 2 . | . . . . Level 3 . | . . . . Level 4 . | . . . . Level 5 . | . . . . High Security . | . . . . Max Security . | . . . . Squads Dispatched . | . . . . Investigation . | . . . . Extermination . | . . . . Reinforcement . | . . . . Assault . | . . . . Garrison . | . . . . Intercept . | . . . . Searches Triggered . | . . . . Construction Impeded . | . . . . Haulers Reinforced . | . . . . Active Scanning Responses . | . . . . Cargo Convoy Interrupts . | . . . . Stealth | -11 -10 -10 -10 --------- Run | Jun Mat Min Exi Distress Signals . | . . . . Communications Jammed . | . . . . Distress Signals . | . . . . Times Spotted 25 | . 2 6 17 Peak Tracking Total 11 | . 1 2 11 Tactical Retreats 2 | . . . 2 Traps | -11 -10 -10 -10 ------- Run | Jun Mat Min Exi Traps Triggered . | . . . . Indirectly . | . . . . Trap Hack Attempts . | . . . . Triggered . | . . . . Disarmed . | . . . . Reprogrammed . | . . . . Reused . | . . . . Traps Extracted . | . . . . Installed . | . . . . Triggered . | . . . . Exploded 3 | . . . 3 Machines | -11 -10 -10 -10 ---------- Run | Jun Mat Min Exi Machines Disabled 8 | . 1 1 6 Max in Single Turn 2 | . 1 . 2 Machines Repaired . | . . . . Machines Sabotaged . | . . . . Overloaded Fab Kills . | . . . . Hacking | -11 -10 -10 -10 --------- Run | Jun Mat Min Exi Machines Accessed 3 | . . 1 2 Terminals 1 | . . 1 . Fabricators . | . . . . Repair Stations . | . . . . Recycling Units . | . . . . Scanalyzers . | . . . . Garrison Access . | . . . . Total Hacks 3 | . . 1 2 Successful 3 | . . 1 2 Failed . | . . . . Catastrophic . | . . . . Database Lockouts . | . . . . Manual 2 | . . 1 1 Terminals 1 | . . 1 . Fabricators . | . . . . Repair Stations . | . . . . Recycling Units . | . . . . Scanalyzers . | . . . . Garrison Access . | . . . . Terminal Hacks 3 | . . 1 2 Record 1 | . . . 1 Zone Layout 1 | . . 1 . EX-Prototype ID Bank 1 | . . . 1 Fabricator Hacks . | . . . . Repair Station Hacks . | . . . . Recycling Unit Hacks . | . . . . Scanalyzer . | . . . . Garrison Access Hacks . | . . . . Unauthorized Hacks . | . . . . Terminals . | . . . . Fabricators . | . . . . Repair Stations . | . . . . Recycling Units . | . . . . Scanalyzers . | . . . . Garrison Access . | . . . . Data Cores Recovered . | . . . . Used . | . . . . Hacking Detections . | . . . . Full Trace Events . | . . . . Feedback Events . | . . . . Feedback Blocked . | . . . . Robot Schematics Acquired . | . . . . Robots Built . | . . . . Authchips . | . . . . Time . | . . . . Total Robot Build Rating . | . . . . Part Schematics Acquired . | . . . . Parts Built . | . . . . Authchips . | . . . . Time . | . . . . Total Part Build Rating . | . . . . Parts Repaired . | . . . . Time . | . . . . Parts Recycled . | . . . . Recycled Matter . | . . . . Retrieved Matter . | . . . . Retrieved Components . | . . . . Parts Scanalyzed . | . . . . Part Schematics Acquired . | . . . . Parts Damaged . | . . . . Bothacking | -11 -10 -10 -10 ------------ Run | Jun Mat Min Exi Used RIF Installer . | . . . . Robots Hacked . | . . . . Non-combat . | . . . . Combat . | . . . . Robot Hacks Applied . | . . . . Relay Couplers Released . | . . . . Fabnet Peak Effective % . | . . . . Robots Rewired . | . . . . Allies Hacked . | . . . . Hacks Repelled . | . . . . Allies | -11 -10 -10 -10 -------- Run | Jun Mat Min Exi Total Allies 3 | . . 3 . Largest Group 3 | . . 3 . Highest-Rated Group 40 | . . 40 . Highest-Rated Ally 16 | . . 16 . Total Orders . | . . . . Ally Attacks 18 | . . 18 . Total Damage 221 | . . 221 . Kills 4 | . . 4 . Allies Corrupted . | . . . . Allies Melted . | . . . . Intel | -11 -10 -10 -10 ------- Run | Jun Mat Min Exi Robot Analysis Total . | . . . . Derelict Logs Recovered 1 | . . 1 . Drone Launches . | . . . . Drone Recoveries . | . . . . Exploration | -11 -10 -10 -10 ------------- Run | Jun Mat Min Exi Turns Passed 2042 | . 225 940 877 Spaces Moved 1104 | 1 172 556 375 Core 1 | . . . 1 Treads 834 | . . 527 307 Legs 269 | 1 172 29 67 Wheels . | . . . . Hover . | . . . . Flight . | . . . . Fastest Speed 50 | 120 120 120 50 Average Speed 167 | 120 120 157 203 Slowest Speed 240 | 120 120 160 240 Overloaded Moves . | . . . . Propulsion Burnouts . | . . . . Robots Hopped . | . . . . Cave-ins Triggered . | . . . . Exploration Rate (%) 42 | 2 25 84 59 Regions Visited 3 Branch Regions 2 Pre-discovered Areas 1 | . . . 1 Known Exits Taken . | . . . . Unknown Exits Taken 3 | 1 1 1 . Scrap Searched 1 | . . 1 . Spaces Dug . | . . . . Terrain Destroyed 25 | . . . 25 Melee . | . . . . Projectile . | . . . . AOE 25 | . . . 25 Terrain Rammed . | . . . . Walls Destroyed . | . . . . Machines Disabled . | . . . . Actions | -11 -10 -10 -10 --------- Run | Jun Mat Min Exi Total 1223 | . 184 592 447 Wait 28 | . . 15 13 Move 1101 | . 171 555 375 Hop . | . . . . Pick Up 13 | . 5 2 6 Fast Attach 5 | . . 1 4 Attach 6 | . 1 2 3 Detach . | . . . . Swap 5 | . . 1 4 Drop 10 | . 3 2 5 Fire 26 | . . 13 13 Melee 28 | . 4 . 24 Ram . | . . . . Kick . | . . . . Crush 1 | . . 1 . Escape Stasis . | . . . . Rewire . | . . . . Trap . | . . . . Miscellaneous . | . . . . Route ------- -11/Junkyard -10/Materials -10/Mines (discovered 2 exits: [*Mat] / *Exi) -10/Exiles History --------- Turn | Location | Event 1 | -11/Junkyard | Discovered new exit (range 0) 1 | -11/Junkyard | Entered Materials 56 | -10/Materials | Discovered new exit (range 11) 226 | -10/Materials | Entered Mines 229 | -10/Mines | Assisted by bots powering up and referring to "LRC-V3" 237 | -10/Mines | Met a Derelict bent on vengeance 303 | -10/Mines | Build established: Mutant 364 | -10/Mines | YI-UF0 nonchalantly dropped a Grenade Launcher on the ground 406 | -10/Mines | Destroyed YI-UF0 777 | -10/Mines | Discovered new exit (range 15) 1160 | -10/Mines | Deemed a non-threat by the Exiles lab entrance 1160 | -10/Mines | Discovered new exit (range 5) 1166 | -10/Mines | Entered Exiles 1208 | -10/Exiles | Met 8R-AWN 1234 | -10/Exiles | Met EX-HEX 1280 | -10/Exiles | Met EX-BIN 1299 | -10/Exiles | Aligned with FarCom system 1301 | -10/Exiles | Given EX-Vault access code 1338 | -10/Exiles | Opened EX-Vault 1354 | -10/Exiles | Found Longsword +1 1403 | -10/Exiles | Warned to stay clear of 0b10 Research branches 1742 | -10/Exiles | Met EX-DEC 1752 | -10/Exiles | Learned location of Zion (-6) 1772 | -10/Exiles | Attacked by the Exiles 1871 | -10/Exiles | Core integrity fell below 50% 1885 | -10/Exiles | Core integrity fell below 20% 1903 | -10/Exiles | Destroyed 8R-AWN 1930 | -10/Exiles | Lost 6 parts (1p3n1u1w) 2043 | -10/Exiles | Destroyed by DAS Turret with DAS Cannon Last Messages --------------- 01902_ Penetrated by HV Slug. 01903_ 8R-AWN destroyed. 01904_ Acquired 107 matter. 01905_ Dropped Hcp. Storage Unit. 01906_ DP8W9 PVX8I=YNJUZLMC:6%YN3 01907_ Acquired Prototype Leg. 01907_ Identified Adv. Myomer Leg. 01909_ Acquired Adv. Myomer Leg. 01913_ Acquired Rnf. Fission Core. 01916_ Acquired 4 matter. 01918_ The unstable cave ceiling collapses. 01923_ Acquired Hcp. Storage Unit. 01928_ Acquired Adv. Weapon Cycler. 01933_ Acquired Lgt. Assault Rifle. 01944_ Acquired 5 matter. 01965_ HVMV/JLO&UIE,HO/N<2V9NIGW 6& 01974_ Extracted 31 matter. 02000_ Z=V7XNNL5>QD1HVRVLZS205K|XQ>TFRRQT/ZC5 02024_ System corrupted: Component data lost. 02042_ Machine disabled. Map ----- +----------------------------------------------------+ | ????????????????????????????????????#""""""?# | | ?????????????????????????????????????#"###??# | | ????????????????????????????????????????????# | | ????????????????????????????????????????????# | | ???????????????????????????????????????????## | | ???????????#######?????????????????????????#" | | ####???????#!!! "#?????????????????????????#" | | #""#??????# "#?????????????????????????#" | | ??????# "#?????????????????????????#" | | #????## " #????????????####?????????#" | | #####" #???????????? """????????#" | | ##" " #????????????" """#???????## | | # #%#???????????"" #????????# | | # #???????????"" #????????#" | | ??## ##??????????"" "#????????#" | | ???### #####?????? ""?????????#" | | #####" # ## ##??????" "?????????##" | | !""""" # #??????# #????????##"" | | "## ###???### ###?######"" | | "#### #####X# #"###""""""" | | ##??#" """""" " "" | | """" "###???#"# "" """ " | | #######?????### | | ??????????????##; % | | ???????????????# % | | ???????????????# # @ | | ???????????????# ##### | | ???????????????# #???##" | | ???????????????# #????# """""" | | ???????????????# #???? ######""" | | ???????????????# ????# " ""##????#### | | ???????????????##????#""" """##????????? | | ?????????????????????""" """##?????????? | | ????????????????????#""" ""#??????????? | | ??????????????????????" #???????????? | | ???????????????????????" ????????????? | | ??????????????????????? t ???????????" | | ???????????????????????" ???????????? | | ????????????????????????"" ???????????? | | ???????????????????????? ??? ???????????? | | ?????????????????????????? ??????????????????? | | ??????????????????????????????????????????????? ## | | ?????????????????????????????????????????????????? | | ?????????????????????????????????????????????????? | | ?????????????????????????????????????????????????? | | ?????????????????????????????????????????????????? | | ?????????????????????????????????????????????????? | | ?????????????????????????????????????????????????? | | ?????????????????????????????????????????????????? | | ?????????????????????????????????????????????????? | +----------------------------------------------------+ Best States ------------- Heat Dissipation 39 Energy Generation 19 Energy Capacity 310 Matter Stores 300 Matter Capacity 300 Sight Range 16 Terrain Scan Density 10 Armor Coverage 150 Evasion (%) 55 Recoil Reduction 2 Item Schematics ----------------- None Robot Schematics ------------------ None Fabricated ------------ Nothing Alien Tech Used ----------------- None Achievements -------------- None Challenges ------------ None Game ------ Seed CouplerTachyonScythe Manual? 0 Play Time 00:07:39 Cumulative 392.2 hours Start 2023.04.11 @ 00:13:57 End 2023.04.11 @ 00:23:03 Sessions 1 Manual Loads 0 Difficulty Rogue Special Mode None Game No. 433 Rogue 433 Adventurer 0 Explorer 0 Win Type - Total 12 Types 8/0/3/1/0/0/0/0/0 Lore% 81 Gallery% 89 Achievement% 79 Wizard Run 0 Options --------- ASCII 0 Keyboard 0 Movement Numpad Keybinds 0 Fullscreen 1 Font 18/Terminus Map View 76x50 Tactical HUD 1 Map Filters NONE Filters NONE Steam 1 RUN: f89ad91f-8c2a-42bc-a95e-b5dbe71b4f16